Workbook

Sheet Table of Contents
B3: Updated: 2022-06-01 - Wright
B4: 2022 TD-1 Report
B9: Table of
B10: Contents
B12: Accountability
B14: Bus Data
B16: Local Expenditures
B17: Local Expenditures (Continued)
B19: Policy Questionnaire
B21: Inventory
B22: Obsolete Inventory
B24: Buster Report
B26: DPI Use
B27: Official Summary
B28: Official Policy Summary

Sheet Accountability
F2: Updated: 2022-06-01 - Wright | J2: See instructions for Save & Email buttons
C3: Accountability
C8: Electronic Signature:
C10: Title:
C12: Phone:
C14: Email:

Sheet Bus Data
G3: LEA Name | I3: LEA Number | P3: (Save, Email, and Print All options available on Accountability worksheet tab)
G4: ALAMANCE | I4: =INDEX(I130:I245,MATCH(G4,G130:G245,0),1) -> 010
C6: Bus Data
D7: A. | E7: Number of Days Fleet Operated (maximum 185) | K7: (Sub-Totals)
D9: B. | E9: Total Bus Mileage for fiscal year
E10: 1 | F10: Regular & Spare
E11: 2 | F11: EC & EC Spare | K11: =IF(OR(I10>0,I11>0),ROUND(I10+I11,0),0) -> 0
D13: C. | E13: Detail Data (Line B Above - Regular School mileage)
E14: 1 | F14: Regular & Spare
E15: 2 | F15: EC & EC Spare
E16: 3 | F16: Refunded miles (All sources) | K16: =IF(OR(I14>0,I15>0,I16>0),ROUND(SUM(I14:I16),0),0) -> 0 | M16: =SUM(I10:I11)-SUM(I14:I16) -> 0
D18: D. | E18: Total miles operated by all service (support) vehicle(s)
D20: E. | E20: Buses Operated (Do NOT include spares)
E21: 1 | F21: Regular
E22: 2 | F22: EC
E23: 3 | F23: NERS buses | K23: =IF(SUM(I21:I23)>0,SUM(I21:I23),0) -> 0
D25: F. | E25: Buses operated for Summer School
D27: G. | E27: Bus Communication Devices*
E28: 1 | F28: Buses with 2-way radios
E29: 2. | F29: Buses with cell phones
F30: (Include radios & cell phones that are purchased, but not installed in the total count.)
D32: H. | E32: Bus Safety Assistants and Cameras*
E33: 1 | F33: Safety assistant(s)/monitor(s) onboard
E34: 2 | F34: Analog Camera System (Recording to Tape)
E35: 3 | F35: Interior Digital Camera System (Computer)
F36: (Include cameras that are purchased, but not installed in the total counts)
F37: System Type | K37: Pri. System | M37: Sec. System
F38: a. | G38: One camera
F39: b. | G39: Two cameras
F40: c. | G40: Three cameras
F41: d. | G41: Four or more cameras | K41: =IF(SUM(I38:I41)>0,SUM(I38:I41),0) -> 0
E43: 4 | F43: Buses with exterior stop arm cameras
F44: System Type | K44: Pri. System | M44: Sec. System
D46: I. | E46: Bus GPS/Automatic Vehicle Location Systems
E47: System Type | K47: Pri. System | M47: Sec. System
E48: 1 | F48: Real Time GPS trackers
E49: 2 | F49: Passive GPS trackers | K49: =IF(SUM(I48:I49)>0,SUM(I48:I49),"0") -> 0
D51: J. | E51: Buses with electronic time keeping systems
C53: Surplus Property
D54: A. | E54: School buses sold (includes line "C")
D55: B. | E55: State service vehicles sold
D56: C. | E56: School buses sold as scrap metal
C58: State Surplus Contracts
D59: A. | E59: Scrap Tires Sold
E60: 1 | F60: To state scrap tire contractor
E61: 2 | F61: To vendor for parts credit | K61: =IF(SUM(I60:I61)>0,SUM(I60:I61),0) -> 0
D62: B. | E62: Gallons of used oil recycled
D63: C. | E63: Gallons of used anti-freeze recycled
D64: D. | E64: Gallons of biodiesel purchased
D65: E. | E65: Pounds scrap metal sold
C67: Signatures
G69: Cost Clerk | I69: mm-dd-yyyy
G71: Director of Transporation | I71: mm-dd-yyyy
G73: Finance Officer | I73: mm-dd-yyyy
G75: Superintendent | I75: mm-dd-yyyy
G129: LEA Name | I129: LEA #
G130: (SELECT) | K130: Stop Arm Camaras | M130: GPS & VEHICLE TRACKING
G131: ALAMANCE | I131: 010 | K131: Pri. System | M131: Pri. System
G132: ALEXANDER | I132: 020 | K132: Fortress Mobile | M132: Ed. Logistics inc
G133: ALLEGHANY | I133: 030 | K133: Angel Trax | M133: Synovia
G134: ANSON | I134: 040 | K134: Seon | M134: Versatrans
G135: ASHE | I135: 050 | K135: Zen-Tinel | M135: Zen-Tinel | N135: X
G136: AVERY | I136: 060 | K136: 247 security In. | M136: Zonar Sys. Inc. | N136: X
G137: BEAUFORT | I137: 070 | K137: REI | M137: 247 security In.
G138: BERTIE | I138: 080 | K138: Gate Keeper Sya. Inc
G139: BLADEN | I139: 090 | K139: Safety Vision
G140: BRUNSWICK | I140: 100 | K140: Pro-Vision
G141: BUNCOMBE | I141: 110
G142: ASHEVILLE CITY | I142: 111
G143: BURKE | I143: 120 | N143: X
G144: CABARRUS | I144: 130
G145: KANNAPOLIS CITY | I145: 132
G146: CALDWELL | I146: 140
G147: CAMDEN | I147: 150
G148: CARTERET | I148: 160
G149: CASWELL | I149: 170
G150: CATAWBA | I150: 180
G151: HICKORY CITY | I151: 181
G152: NEWTON-CONOVER CITY | I152: 182
G153: CHATHAM | I153: 190 | K153: Sec. System | M153: Sec. System
G154: CHEROKEE | I154: 200 | K154: Fortress Mobile | M154: Ed. Logistics inc
G155: CHOWAN | I155: 210 | K155: Angel Trax | M155: Synovia
G156: CLAY | I156: 220 | K156: Seon | M156: Versatrans
G157: CLEVELAND | I157: 230 | K157: Zen-Tinel | M157: Zen-Tinel
G158: COLUMBUS | I158: 240 | K158: 247 security In. | M158: Zonar Sys. Inc.
G159: WHITEVILLE CITY | I159: 241 | K159: REI | M159: 247 security In.
G160: CRAVEN | I160: 250 | K160: Gate Keeper Sya. Inc
G161: CUMBERLAND | I161: 260 | K161: Safety Vision
G162: CURRITUCK | I162: 270 | K162: Pro-Vision
G163: DARE | I163: 280
G164: DAVIDSON | I164: 290
G165: LEXINGTON CITY | I165: 291
G166: THOMASVILLE CITY | I166: 292
G167: DAVIE | I167: 300
G168: DUPLIN | I168: 310
G169: DURHAM | I169: 320
G170: EDGECOMBE | I170: 330
G171: FORSYTH | I171: 340
G172: FRANKLIN | I172: 350
G173: GASTON | I173: 360
G174: GATES | I174: 370
G175: GRAHAM | I175: 380
G176: GRANVILLE | I176: 390
G177: GREENE | I177: 400
G178: GUILFORD | I178: 410
G179: HALIFAX | I179: 420
G180: ROANOKE RAPIDS CITY | I180: 421
G181: WELDON CITY | I181: 422
G182: HARNETT | I182: 430
G183: HAYWOOD | I183: 440
G184: HENDERSON | I184: 450
G185: HERTFORD | I185: 460
G186: HOKE | I186: 470
G187: HYDE | I187: 480
G188: IREDELL | I188: 490
G189: MOORESVILLE CITY | I189: 491
G190: JACKSON | I190: 500
G191: JOHNSTON | I191: 510
G192: JONES | I192: 520
G193: LEE | I193: 530
G194: LENOIR | I194: 540
G195: LINCOLN | I195: 550
G196: MACON | I196: 560
G197: MADISON | I197: 570
G198: MARTIN | I198: 580
G199: McDOWELL | I199: 590
G200: MECKLENBURG | I200: 600
G201: MITCHELL | I201: 610
G202: MONTGOMERY | I202: 620
G203: MOORE | I203: 630
G204: NASH | I204: 640
G205: NEW HANOVER | I205: 650
G206: NORTHAMPTON | I206: 660
G207: ONSLOW | I207: 670
G208: ORANGE | I208: 680
G209: CHAPEL HILL CITY | I209: 681
G210: PAMLICO | I210: 690
G211: PASQUOTANK | I211: 700
G212: PENDER | I212: 710
G213: PERQUIMANS | I213: 720
G214: PERSON | I214: 730
G215: PITT | I215: 740
G216: POLK | I216: 750
G217: RANDOLPH | I217: 760
G218: ASHEBORO CITY | I218: 761
G219: RICHMOND | I219: 770
G220: ROBESON | I220: 780
G221: ROCKINGHAM | I221: 790
G222: ROWAN | I222: 800
G223: RUTHERFORD | I223: 810
G224: SAMPSON | I224: 820
G225: CLINTON CITY | I225: 821
G226: SCOTLAND | I226: 830
G227: STANLY | I227: 840
G228: STOKES | I228: 850
G229: SURRY | I229: 860
G230: ELKIN CITY | I230: 861
G231: MT AIRY CITY | I231: 862
G232: SWAIN | I232: 870
G233: TRANSYLVANIA | I233: 880
G234: TYRRELL | I234: 890
G235: UNION | I235: 900
G236: VANCE | I236: 910
G237: WAKE | I237: 920
G238: WARREN | I238: 930
G239: WASHINGTON | I239: 940
G240: WATAUGA | I240: 950
G241: WAYNE | I241: 960
G242: WILKES | I242: 970
G243: WILSON | I243: 980
G244: YADKIN | I244: 990
G245: YANCEY | I245: 995

Sheet Local Expenditures
D3: Finance Officer Certification | H3: Expenditures reported on lines 1-5 are limited to payment for drivers transporting students to and from school for a maximum 185 days per year. It does not consist of payments for field-trips, remediation programs, pre-K programs, etc. | AO3: (Save, Email, and Print All options available on Accountability worksheet tab)
P5: (FO Initials)
H7: Current Yearly Rate: | J7: 17.89 | L7: PRC/ Object Code
C8: Bus Drivers - Local Expenditures | P8: (Subtotals)
D9: A. | E9: Driver Salary (Except incentive pay/bonuses) (Exclude benefits) | N9: 0
D11: B. | E11: Driver Incentive pay or Bonuses (Exclude benefits) | N11: 0
D13: C. | E13: Including total compensation from both state funds and the amount input for
E14: line A above, did you have any drivers paid over yearly per hour rate? | L14: No
E16: 1 | F16: Number of drivers?
E17: 2 | F17: Total wages paid in excess of yearly per hour rate
E19: Subtract the amount in line C2 from the amount line A | P19: =SUM(N9-N17) -> 0
J21: Salaries | L21: Bonuses | N21: Excess Wages
D22: D. | E22: Driver Matching Benefits | H22: PRC/Object Code | J22: (Ln A above) | L22: (Ln B above) | N22: (Ln C above) | U22: Line C2 - Driver Salary Total Compensation in Excess of maximum allowed under the state salary schedule.
F23: Social Security | J23: 0 | L23: 0 | N23: 0
F24: Retirement | J24: 0 | L24: 0 | N24: 0 | U24: (Examples and Computation Assist)
F25: Medical Cost | J25: 0 | L25: 0 | N25: 0 | AA25: Current Yearly Rate: | AE25: =J7 -> 17.89
F26: Total Benefits | J26: =IF(SUM(J23:J25),SUM(J23:J25),"") ->  | L26: =IF(SUM(L23:L25),SUM(L23:L25),"") ->  | N26: =IF(SUM(N23:N25),SUM(N23:N25),"") -> 
C28: Transporation Personnel | U28: Column Ref. | W28: A | Y28: B | AA28: C | AC28: D | AE28: E | AG28: F | AI28: G | AK28: H | AM28: I
D29: A. | E29: State Paid Positions | U29: Description: | W29: State Hourly Salary | Y29: Local Hourly Salary | AA29: Total Hourly Salary | AC29: Annual Hours Paid | AE29: Annual Salary | AG29: Other Local Comp. | AI29: Total Annual Salary | AK29: Annual Salary | AM29: ="Excess Over $"&$AE$25 -> Excess Over $17.89
E30: 1 | F30: Administrative | N30: 0
E31: 2 | F31: Mechanic | N31: 0
D32: B. | E32: Local Paid Positions | U32: Computation: | W32: Input | Y32: Input | AA32: (Col A + Col B) | AC32: Input | AE32: (Col C x Col D) | AG32: Input | AI32: (Col E + Col F) | AK32: (Col D x Rate) | AM32: (Col G - Col H)
E33: 1 | F33: Administrative | N33: 0
E34: 2 | F34: Mechanic | N34: 0 | U34: Example: A | W34: 8.75 | Y34: 0.75 | AA34: =SUM(W34:Y34) -> 9.5 | AC34: 810 | AE34: =SUM(AA34*AC34) -> 7695 | AG34: 0 | AI34: =SUM(AE34:AG34) -> 7695 | AK34: =SUM(AC34*$AE$25) -> 14490.9 | AM34: =MAX(0,SUM(AI34-AK34)) -> 0
L35: Total Positons: | P35: =IF(SUM(N30:N31,N33:N34),SUM(N30:N31,N33:N34),"") ->  | U35: Example: B | W35: 17.45 | Y35: 2.12 | AA35: =SUM(W35:Y35) -> 19.57 | AC35: 710 | AE35: =SUM(AA35*AC35) -> 13894.7 | AG35: 0 | AI35: =SUM(AE35:AG35) -> 13894.7 | AK35: =SUM(AC35*$AE$25) -> 12701.9 | AM35: =MAX(0,SUM(AI35-AK35)) -> 1192.8
D36: C. | E36: Personnel Salaries (Local funds) | U36: Example: C* | W36: 9.95 | Y36: 0 | AA36: =SUM(W36:Y36) -> 9.95 | AC36: 920 | AE36: =SUM(AA36*AC36) -> 9154 | AG36: 1000 | AI36: =SUM(AE36:AG36) -> 10154 | AK36: =SUM(AC36*$AE$25) -> 16458.8 | AM36: =MAX(0,SUM(AI36-AK36)) -> 0
E37: 1 | F37: Director | U37: Computation** | AA37: =SUM(W37:Y37) -> 0 | AE37: =SUM(AA37*AC37) -> 0 | AI37: =SUM(AE37:AG37) -> 0 | AK37: =SUM(AC37*$AE$25) -> 0 | AM37: =MAX(0,SUM(AI37-AK37)) -> 0
F38: Name | H38: Title | J38: PRC/Object Code | L38: Local Salary | N38: Match Benefits
L39: 0 | U39: Notes:
E40: 2 | F40: Other Personnel | U40: * | W40: Line C, Column F - Represents a $100 supplement paid monthly for 10 months.
L41: 0 | U41: ** | W41: Computation line allows for data input, for an amount to be computed to be entered on line C2.
F46: Sub-Totals from continuation form: | L46: =IF(SUM('Local Expenditures. (Continued)'!L36)>0,SUM('Local Expenditures. (Continued)'!L36),"") ->  | N46: =IF(SUM('Local Expenditures. (Continued)'!N36)>0,SUM('Local Expenditures. (Continued)'!N36),"") ->  | T46: =IF(P35="","Note: Transporation Personnel Line A & B Input is required. Please correct data entry.","") -> Note: Transporation Personnel Line A & B Input is required. Please correct data entry.
F47: Totals: | L47: =IF(SUM(L41:L46),SUM(L41:L46),"") ->  | N47: =IF(SUM(N41:N46),SUM(N41:N46),"") -> 
D49: Finance Officer Certification | H49: All salaries listed in section C2 are directly related to the operation of "yellow" school buses for transporting students to and from school. Work performed by these individuals on non-state vehicles is refunded to PRC 056 or was not reported as a state or local PRC 056 expenditure.
P51: (FO Initials)
C54: Other Local Expenditures | L54: PRC/Object Code
D55: A. | E55: Fuel | N55: 0 | T55: =IF(SUM(N55:N56)>0,"Note ONLY (Not an Error): TD-24A forms must be on file at DPI to support the total expended for both state and local funds.","") -> 
D56: B. | E56: Contract Transporation | N56: 0
D57: C. | E57: Other Expenditures
H58: Description | L58: PRC/Object Code | N58: Amt Expended
N59: 0
F64: Sub-Total from continuation form: | N64: =SUM('Local Expenditures. (Continued)'!N70) -> 0
F65: Total: | N65: =IF(SUM(N59:N64),SUM(N59:N64),"") -> 
F118: (Select)
F119: Yes
F120: No

Sheet Local Expenditures. (Continued)
C3: Transporation Personnel | T3: (Save, Email, and Print All options available on Accountability worksheet tab)
D4: C. | E4: Personnel Salaries (Local funds) (Continued)
F5: Name | H5: Title | J5: PRC/Object Code | L5: Local Salary | N5: Match Benefits
F36: Sub-Totals to Carry: | L36: =IF(SUM(L6:L35),SUM(L6:L35),"") ->  | N36: =IF(SUM(N6:N35),SUM(N6:N35),"") -> 
C37: Other Local Expenditures
D38: C. | E38: Other Expenditures (Continued)
H39: Description | L39: PRC/Object Code | N39: Amt Expended
F70: Sub-Total: | N70: =IF(SUM(N40:N69),SUM(N40:N69),"") -> 

Sheet Policy Questionnaire
C3: POLICY QUESTIONNAIRE | N3: DPI Official Use
F5: (Check all that apply)
C6: A. | D6: Who has the primary responsibility in your LEA for developing school bus | L6: (Save, Email, and Print All options available on Accountability worksheet tab)
D7: routes, establishing bus stops and assigning students to buses? | F7: Superintendent/Asst. Superintendent | N7: FALSE
F9: Transportation director
F11: Principals
F13: TIMS Coordinator
F15: Tranportation Supervisor
E17: Other: | N17: =IF(F17<>"","TRUE","FALSE") -> FALSE
C21: B. | D21: a. | E21: Does your LEA use a staggered bell time system? | G21: Yes
E22: (i.e. do some school start times differ by a half hour or more?)
G23: No
D25: b. | E25: If yes, is this primarily to facilitate transportation | G25: Yes
G27: No
C31: C. | D31: Who is involved in establishing school bell times in your LEA? | F31: (Check all that apply)
F33: Superintendent/Asst. Superintendent
F35: Transportation director
F37: Principals
F39: TIMS Coordinator
F41: Transportation Supervisor
E43: Other: | N43: =IF(F43<>"","TRUE","FALSE") -> FALSE
C47: D. | D47: Do you permit buses travel to be routed on interstate highways? | G47: Yes
G49: No
C53: E. | D53: Does your county have interstate highways? | G53: Yes
G55: No
C59: F. | D59: For what types of alt. programs does your LEA provide transportation? | F59: (Check all that apply)
F61: At risk BEP
F63: Pre-K Handicapped
F65: Head Start
F67: At risk Remediation
F69: Migrant Education
F71: DARE Program
F73: Local Enrichment
F75: SOS Plus
F77: Vipers Program
E79: Other: | N79: =IF(F79<>"","TRUE","FALSE") -> FALSE
C83: G. | D83: What is your district goal for maximum ride times in minutes? (One-way trip) | G83: None
F85: Regular Students | N85: =SUM(I85) -> 0
F87: Special Education Students | N87: =SUM(I87) -> 0
C91: H. | D91: What is the goal for earliest student boarding time? (Time of day - ex: 5:45) | G91: A.M. | N91: =SUM(I91) -> 00:00:00
F93: None
C97: I. | D97: What is the goal for latest student arrival at home? (Time of day - ex: 5:45) | G97: P.M. | N97: =SUM(I97) -> 00:00:00
F99: None
C103: J. | D103: If you pair bus driving with additional duties in the LEA, estimate the % of total bus drivers that have these additional duties by type….......................... | F103: Food Service/Driver | N103: =SUM(I103) -> 0
F105: Custodial/Driver | N105: =SUM(I105) -> 0
F107: Teacher Assistant/Driver | N107: =SUM(I107) -> 0
E110: Other: | N110: =IF(F110<>"","TRUE","FALSE") -> FALSE
C114: K. | D114: Employees Required to get School Bus Driver Certificate | F114: (Check all that apply)
F116: Food service
F118: Custodial
F120: Teacher Assistant
E122: Other: | N122: =IF(F122<>"","TRUE","FALSE") -> FALSE
C127: L. | D127: Driver Screening and Criminal History Background Check | F127: (Check all that apply)
E129: Adopted Policy for Circumstances Driver Will be Subject to Criminal History Check
F131: Required for Pre-Employment
C135: M. | D135: How often is background check(s) completed: | F135: Annual
E137: Semi-Annual
F139: Never
E141: Other: | N141: =IF(F122<>"","TRUE","FALSE") -> FALSE
C145: N. | D145: Types of background check(s) | F145: (Check all that apply)
F147: Criminal Background Search
F149: FBI Background Check
F151: State Background Check
F153: Local Background Check
F155: National Background Check
F157: Police Record Search
F159: Sex Offender Search
F161: Driving Record Search
F163: Prison Inmate Search
F165: Vehicle History Search
E167: Other:
C171: O. | D171: How often is physical inventory completed? | F171: Annual
E173: Semi-Annual
F175: Never
E177: Other: | N177: =IF(F177<>"","TRUE","FALSE") -> FALSE
C179: P. | D179: How many individuals are assigned to inventory? | N179: =SUM(I179) -> 0
C183: Q. | D183: TIMS (Number of Staff who work in TIMS)
D184: a. | E184: 75% - 100% of their time? | N184: =SUM(I184) -> 0
D186: b. | E186: 50% - 74% of their time? | N186: =SUM(I186) -> 0
D188: c. | E188: 25% - 49% of their time? | N188: =SUM(I188) -> 0
D190: d. | E190: 1% - 24% of their time? | N190: =SUM(I190) -> 0
D192: e. | E192: Does a TIMS coordinator or data manager have editing capability in Powerschool? | G192: Yes
G194: No
D196: f. | E196: If no, does a TIMS coordinator or data manager have read only access to Powerschool? | G196: Yes
G198: No
D200: g. | E200: What is your student data upload schedule for TIMS? | F200: Daily
E202: Weekly
F204: Monthly
E206: A few times per semester
F208: Twice a year
F210: Once a year
C214: R. | D214: Charter Schools
D216: a. | E216: If you transport any charter school students list number | N216: =SUM(I216) -> 0
D218: b. | E218: If you have any buses delicated to charter school(s) only list number | N218: =SUM(I218) -> 0
D220: c. | E220: If you maintain/service any charter school buses list number | N220: =SUM(I220) -> 0
C224: S. | D224: Mechanic Classification and Average Salary
D226: a. | E226: Mechanic I positions you have? | N226: =SUM(I226) -> 0
D228: b. | E228: Mechanic II positions you have? | N228: =SUM(I228) -> 0
D230: c. | E230: Mechanic III positions you have? | N230: =SUM(I230) -> 0
D232: d. | E232: Mechanic I annual average salary | N232: =SUM(I232) -> 0
D234: e. | E234: Mechanic II annual average salary | N234: =SUM(I234) -> 0
D236: f. | E236: Mechanic III annual average salary | N236: =SUM(I236) -> 0

Sheet Inventory
C3: Stocked Inventory | F3: Charge Account code: | I3: 424 | L3: 425 | S3: 422 | V3: 423 | AA3: 423 | AF3: 423
F4: Inventory Item: | I4: Oil | L4: Tires | S4: Parts (Repair) | V4: Diesel | AA4: Unleaded | AF4: Other | AI4: Total
L5: New | N5: Recap | P5: All | AF5: Fuels & DEF
F6: Type: | I6: Currency | L6: Quantity | N6: Quantity | P6: Currency | S6: Currency | V6: Quantity | X6: Currency | AA6: Quantity | AC6: Currency | AF6: Currency | AI6: Currency
D8: A. | E8: Beginning | F8: ="07/01/"&(YEAR(TODAY())-1) -> 07/01/2021 | AI8: =I8+P8+S8+X8+AC8+AF8 -> 0
D9: B. | E9: Purchased | F9: Fiscal Year | AI9: 0
D10: C. | E10: Used | F10: Fiscal Year | AI10: 0
D11: D. | E11: Ending (Actual) | F11: ="06/30/"&YEAR(TODAY()) -> 06/30/2022 | AI11: 0
D12: E. | E12: Adjustment (Additions) | F12: Fiscal Year | AI12: 0
D13: F. | E13: Adjustment (Deletions) | F13: Fiscal Year | AI13: 0
D14: G. | E14: Tranferred to/from another LEA | F14: Fiscal Year | AI14: 0
D15: H. | E15: Removed Obsolete/Damaged | F15: Fiscal Year | I15: =IF('Obsolete Inventory'!H5>0,'Obsolete Inventory'!H5,0) -> 0 | P15: ='Obsolete Inventory'!H6 -> 0 | S15: ='Obsolete Inventory'!H7 -> 0 | V15: ='Obsolete Inventory'!G8 -> 0 | X15: ='Obsolete Inventory'!H8 -> 0 | AA15: ='Obsolete Inventory'!G9 -> 0 | AC15: ='Obsolete Inventory'!H9 -> 0 | AF15: ='Obsolete Inventory'!H10 -> 0 | AI15: 0
C17: Summary Analysis
D19: A. | E19: Variance in Ending and Beginning Stock (Ln D minus Ln A) | I19: =I11-I8 -> 0 | L19: =L11-L8 -> 0 | N19: =N11-N8 -> 0 | P19: =P11-P8 -> 0 | S19: =S11-S8 -> 0 | V19: =V11-V8 -> 0 | X19: =X11-X8 -> 0 | AA19: =AA11-AA8 -> 0 | AC19: =AC11-AC8 -> 0 | AF19: =AF11-AF8 -> 0 | AI19: =AI11-AI8 -> 0
D20: B. | E20: Data Validility Check* (See Instructions) | I20: =I11-(I8+I9-I10+I12-I13-I15+I14) -> 0 | L20: =L11-(L8+L9-L10+L12-L13-L15+L14) -> 0 | N20: =N11-(N8+N9-N10+N12-N13-N15+N14) -> 0 | P20: =P11-(P8+P9-P10+P12-P13-P15+P14) -> 0 | S20: =S11-(S8+S9-S10+S12-S13-S15+S14) -> 0 | V20: =V11-(V8+V9-V10+V12-V13-V15+V14) -> 0 | X20: =X11-(X8+X9-X10+X12-X13-X15+X14) -> 0 | AA20: =AA11-(AA8+AA9-AA10+AA12-AA13-AA15+AA14) -> 0 | AC20: =AC11-(AC8+AC9-AC10+AC12-AC13-AC15+AC14) -> 0 | AF20: =AF11-(AF8+AF9-AF10+AF12-AF13-AF15+AF14) -> 0 | AI20: =AI11-(AI8+AI9-AI10+AI12-AI13-AI15+AI14) -> 0
D21: C. | E21: Inventory Adjustment (Increases) as % of Usage | I21: =IF(I10=0,"",I12/I10) ->  | L21: =IF(L10=0,"",L12/L10) ->  | N21: =IF(N10=0,"",N12/N10) ->  | P21: =IF(P10=0,"",P12/P10) ->  | S21: =IF(S10=0,"",S12/S10) ->  | V21: =IF(V10=0,"",V12/V10) ->  | X21: =IF(X10=0,"",X12/X10) ->  | AA21: =IF(AA10=0,"",AA12/AA10) ->  | AC21: =IF(AC10=0,"",AC12/AC10) ->  | AF21: =IF(AF10=0,"",AF12/AF10) ->  | AI21: =IF(AI10=0,"",AI12/AI10) -> 
D22: D. | E22: Inventory Adjustment (Losses) as % of Usage | I22: =IF(I10=0,"",I13/I10) ->  | L22: =IF(L10=0,"",L13/L10) ->  | N22: =IF(N10=0,"",N13/N10) ->  | P22: =IF(P10=0,"",P13/P10) ->  | S22: =IF(S10=0,"",S13/S10) ->  | V22: =IF(V10=0,"",V13/V10) ->  | X22: =IF(X10=0,"",X13/X10) ->  | AA22: =IF(AA10=0,"",AA13/AA10) ->  | AC22: =IF(AC10=0,"",AC13/AC10) ->  | AF22: =IF(AF10=0,"",AF13/AF10) ->  | AI22: =IF(AI10=0,"",AI13/AI10) -> 
N24: Non-Stock Inventory | S24: Summary Analysis: Line A is the difference between what your beginning/ending fiscal year balances. Line B indicates whether the values pulled are correct; if differences recheck the numbers. Small differences can be ignored.
C25: Non-Stock Inventory | N25: Quantity | P25: Currency
D27: A. | E27: Inventory Purchased
C29: Engine Replacement | N29: Quantity
D31: A. | E31: Replaced under warranty | S31: Finance Officer Certification | X31: This is to certify that an annual physical inventory of parts was completed by June 30, of the fiscal year.
D32: B. | E32: Replaced non-warranty
D33: C. | E33: Total replaced | N33: =SUM(N31:N32) -> 0 | AF33: (Initials)
B49: (Save, Email, and Print All options available on Accountability worksheet tab)

Sheet Obsolete Inventory
E3: Obsolete or Damaged Stock | G3: Summary Information | N3: (Save, Email, and Print All options available on Accountability worksheet tab)
G4: Quantity | H4: Value
F5: Oil | G5: =SUMIF($J$14:$J$513,F5,G$14:G$513) -> 0 | H5: =SUMIF($J$14:$J$513,F5,H$14:H$513) -> 0
F6: Tires | G6: =SUMIF($J$14:$J$513,F6,G$14:G$513) -> 0 | H6: =IF(SUMIF($J$14:$J$513,F6,H$14:H$513),SUMIF($J$14:$J$513,F6,H$14:H$513),0) -> 0
F7: Repair Parts | G7: =SUMIF($J$14:$J$513,F7,G$14:G$513) -> 0 | H7: =IF(SUMIF($J$14:$J$513,F7,H$14:H$513),SUMIF($J$14:$J$513,F7,H$14:H$513),0) -> 0
F8: Diesel | G8: =IF(SUMIF($J$14:$J$513,F8,G$14:G$513),SUMIF($J$14:$J$513,F8,G$14:G$513),0) -> 0 | H8: =IF(SUMIF($J$14:$J$513,F8,H$14:H$513),SUMIF($J$14:$J$513,F8,H$14:H$513),0) -> 0
F9: Gasoline | G9: =IF(SUMIF($J$14:$J$513,F9,G$14:G$513),SUMIF($J$14:$J$513,F9,G$14:G$513),0) -> 0 | H9: =IF(SUMIF($J$14:$J$513,F9,H$14:H$513),SUMIF($J$14:$J$513,F9,H$14:H$513),0) -> 0
F10: Other Fuels / DEF | G10: =IF(SUMIF($J$14:$J$513,F10,G$14:G$513),SUMIF($J$14:$J$513,F10,G$14:G$513),0) -> 0 | H10: =IF(SUMIF($J$14:$J$513,F10,H$14:H$513),SUMIF($J$14:$J$513,F10,H$14:H$513),0) -> 0
E12: DOT Number | F12: BSIP Part Description | G12: Quantity Removed | H12: Total Value of Stock Removed | I12: Obsolete or Damaged | J12: Group Type
S13: Oil Group Check
C14: =ROW()-13 -> 1 | J14: =IF(ISBLANK(E14),"",IF(S14<>"",S14,IF(ISERROR(INT(LEFT(E14,3))),"Repair Parts",IF(OR(INT(LEFT(E14,3))=155,INT(LEFT(E14,3))>159),"Repair Parts",IF(INT(LEFT(E14,3))=150,"Tires","UNKNOWN"))))) ->  | S14: =IF(ISERROR(INT(LEFT(E14,3))),"",IF(INT(LEFT(E14,3))=159,IF(AND(INT(LEFT(E14,3))=159,INT(E14)<>159000098,INT(E14)<>159000099,OR(AND(INT(E14)>=159000000,INT(E14)<=159000051),INT(E14)>159000062)),"Oil",IF(INT(E14)=159000054,"Diesel",IF(INT(E14)=159000055,"Gasoline",IF(INT(LEFT(E14,3))=159,"Other Fuels / DEF")))),"")) -> 
C15: =ROW()-13 -> 2 | J15: =IF(ISBLANK(E15),"",IF(S15<>"",S15,IF(ISERROR(INT(LEFT(E15,3))),"Repair Parts",IF(OR(INT(LEFT(E15,3))=155,INT(LEFT(E15,3))>159),"Repair Parts",IF(INT(LEFT(E15,3))=150,"Tires","UNKNOWN"))))) -> 
C16: 3 | J16: =IF(ISBLANK(E16),"",IF(S16<>"",S16,IF(ISERROR(INT(LEFT(E16,3))),"Repair Parts",IF(OR(INT(LEFT(E16,3))=155,INT(LEFT(E16,3))>159),"Repair Parts",IF(INT(LEFT(E16,3))=150,"Tires","UNKNOWN"))))) -> 
C17: 4 | J17: =IF(ISBLANK(E17),"",IF(S17<>"",S17,IF(ISERROR(INT(LEFT(E17,3))),"Repair Parts",IF(OR(INT(LEFT(E17,3))=155,INT(LEFT(E17,3))>159),"Repair Parts",IF(INT(LEFT(E17,3))=150,"Tires","UNKNOWN"))))) -> 
C18: 5 | J18: =IF(ISBLANK(E18),"",IF(S18<>"",S18,IF(ISERROR(INT(LEFT(E18,3))),"Repair Parts",IF(OR(INT(LEFT(E18,3))=155,INT(LEFT(E18,3))>159),"Repair Parts",IF(INT(LEFT(E18,3))=150,"Tires","UNKNOWN"))))) -> 
C19: 6
C20: 7
C21: 8
C22: 9
C23: 10
C24: 11
C25: 12
C26: 13
C27: 14
C28: 15
C29: 16
C30: 17
C31: 18
C32: 19
C33: 20
C34: 21
C35: 22
C36: 23
C37: 24
C38: 25
C39: 26
C40: 27
C41: 28
C42: 29
C43: 30
C44: 31
C45: 32
C46: 33
C47: 34
C48: 35
C49: 36
C50: 37
C51: 38
C52: 39
C53: 40
C54: 41
C55: 42
C56: 43
C57: 44
C58: 45
C59: 46
C60: 47
C61: 48
C62: 49
C63: 50
C64: 51
C65: 52
C66: 53
C67: 54
C68: 55
C69: 56
C70: 57
C71: 58
C72: 59
C73: 60
C74: 61
C75: 62
C76: 63
C77: 64
C78: 65 | J78: =IF(ISBLANK(E78),"",IF(S78<>"",S78,IF(ISERROR(INT(LEFT(E78,3))),"Repair Parts",IF(OR(INT(LEFT(E78,3))=155,INT(LEFT(E78,3))>159),"Repair Parts",IF(INT(LEFT(E78,3))=150,"Tires","UNKNOWN"))))) ->  | S78: =IF(ISERROR(INT(LEFT(E78,3))),"",IF(INT(LEFT(E78,3))=159,IF(AND(INT(LEFT(E78,3))=159,INT(E78)<>159000098,INT(E78)<>159000099,OR(AND(INT(E78)>=159000000,INT(E78)<=159000051),INT(E78)>159000062)),"Oil",IF(INT(E78)=159000054,"Diesel",IF(INT(E78)=159000055,"Gasoline",IF(INT(LEFT(E78,3))=159,"Other Fuels / DEF")))),"")) -> 
C79: =ROW()-13 -> 66
C80: 67
C81: 68
C82: 69
C83: 70
C84: 71
C85: 72
C86: 73
C87: 74
C88: 75
C89: 76
C90: 77
C91: 78
C92: 79
C93: 80
C94: 81
C95: 82
C96: 83
C97: 84
C98: 85
C99: 86
C100: 87
C101: 88
C102: 89
C103: 90
C104: 91
C105: 92
C106: 93
C107: 94
C108: 95
C109: 96
C110: 97
C111: 98
C112: 99
C113: 100
C114: 101
C115: 102
C116: 103
C117: 104
C118: 105
C119: 106
C120: 107
C121: 108
C122: 109
C123: 110
C124: 111
C125: 112
C126: 113
C127: 114
C128: 115
C129: 116
C130: 117
C131: 118
C132: 119
C133: 120
C134: 121
C135: 122
C136: 123
C137: 124
C138: 125
C139: 126
C140: 127
C141: 128
C142: 129 | J142: =IF(ISBLANK(E142),"",IF(S142<>"",S142,IF(ISERROR(INT(LEFT(E142,3))),"Repair Parts",IF(OR(INT(LEFT(E142,3))=155,INT(LEFT(E142,3))>159),"Repair Parts",IF(INT(LEFT(E142,3))=150,"Tires","UNKNOWN"))))) ->  | S142: =IF(ISERROR(INT(LEFT(E142,3))),"",IF(INT(LEFT(E142,3))=159,IF(AND(INT(LEFT(E142,3))=159,INT(E142)<>159000098,INT(E142)<>159000099,OR(AND(INT(E142)>=159000000,INT(E142)<=159000051),INT(E142)>159000062)),"Oil",IF(INT(E142)=159000054,"Diesel",IF(INT(E142)=159000055,"Gasoline",IF(INT(LEFT(E142,3))=159,"Other Fuels / DEF")))),"")) -> 
C143: =ROW()-13 -> 130
C144: 131
C145: 132
C146: 133
C147: 134
C148: 135
C149: 136
C150: 137
C151: 138
C152: 139
C153: 140
C154: 141
C155: 142
C156: 143
C157: 144
C158: 145
C159: 146
C160: 147
C161: 148
C162: 149
C163: 150
C164: 151
C165: 152
C166: 153
C167: 154
C168: 155
C169: 156
C170: 157
C171: 158
C172: 159
C173: 160
C174: 161
C175: 162
C176: 163
C177: 164
C178: 165
C179: 166
C180: 167
C181: 168
C182: 169
C183: 170
C184: 171
C185: 172
C186: 173
C187: 174
C188: 175
C189: 176
C190: 177
C191: 178
C192: 179
C193: 180
C194: 181
C195: 182
C196: 183
C197: 184
C198: 185
C199: 186
C200: 187
C201: 188
C202: 189
C203: 190
... 311 more rows

Sheet Buster Report
C3: Buster Report
AD4: (Save, Email, and Print All options available on Accountability worksheet tab)
D5: LEA # | E5: ='Bus Data'!I4 -> 010 | AF5: TRUE
D7: Check if LEA does not own/share a Buster Robotic Bus
D9: Summary | F9: Time | G9: Local | H9: Individuals Present | J9: Pre K | L9: K | N9: 1 | P9: 2 | R9: 3 | T9: 4 | V9: 5 | X9: 6 | Z9: 7-12 | AB9: Public Demo
E11: Totals: | F11: =SUM(F18:F37) -> 0 | G11: =COUNTIF(G18:G37,"<>"&"") -> 0 | H11: =SUM(H18:H37) -> 0 | J11: =COUNTIF(AE18:AE37,"True") -> 0 | L11: =COUNTIF(AF18:AF37,"True") -> 0 | N11: =COUNTIF(AG18:AG37,"True") -> 0 | P11: =COUNTIF(AH18:AH37,"True") -> 0 | R11: =COUNTIF(AI18:AI37,"True") -> 0 | T11: =COUNTIF(AJ18:AJ37,"True") -> 0 | V11: =COUNTIF(AK18:AK37,"True") -> 0 | X11: =COUNTIF(AL18:AL37,"True") -> 0 | Z11: =COUNTIF(AM18:AM37,"True") -> 0 | AB11: =COUNTIF(AN18:AN37,"True") -> 0
J14: (Check all that apply)
D15: LEA | E15: Date | F15: Time (Hours) | G15: Local | H15: Individuals Present | J15: Pre K | L15: K | N15: 1 | P15: 2 | R15: 3 | T15: 4 | V15: 5 | X15: 6 | Z15: 7-12 | AB15: Public Demo
AE16: Pre -K | AF16: K | AG16: 1 | AH16: 2 | AI16: 3 | AJ16: 4 | AK16: 5 | AL16: 6 | AM16: 7 | AN16: Public
B18: 1 | D18: =IF(E18<>"",$E$5,"") -> 
B19: 2 | D19: =IF(E19<>"",$E$5,"") -> 
B20: 3
B21: 4
B22: 5
B23: 6
B24: 7
B25: 8
B26: 9
B27: 10
B28: 11
B29: 12
B30: 13
B31: 14
B32: 15
B33: 16
B34: 17
B35: 18
B36: 19
B37: 20
E39: =ROUNDUP(SUM(MAX(16,COUNTIF(E18:E37,"<>"))/16),0) -> 1

Sheet Official Summary
C3: Bus Data Tab | K3: Policy Tab | S3: Inventory Tab
D4: LEA | L4: A. | N4: =IF('Policy Questionnaire'!N7,"X","") ->  | O4: Supt./Asst. Supt. | U4: 424 | V4: 425 | Y4: 422 | Z4: 423 | AB4: 423 | AD4: 423
D5: Name | G5: ='Bus Data'!G4 -> ALAMANCE | N5: =IF('Policy Questionnaire'!N9,"X","") ->  | O5: Transportation director | U5: Oil | V5: Tires | Y5: Parts (Repair) | Z5: Diesel | AB5: Unleaded | AD5: Other | AE5: Total
D6: Code | G6: ='Bus Data'!I4 -> 010 | N6: =IF('Policy Questionnaire'!N11,"X","") ->  | O6: Principals | V6: New | W6: Recap | X6: All | AD6: Fuels & DEF
N7: =IF('Policy Questionnaire'!N13,"X","") ->  | O7: TIMS Coordinator | U7: Currency | V7: Quantity | W7: Quantity | X7: Currency | Y7: Currency | Z7: Quantity | AA7: Currency | AB7: Quantity | AC7: Currency | AD7: Currency | AE7: Currency
C8: Bus Data | D8: A. | G8: ='Bus Data'!$I$7 -> 0 | N8: =IF('Policy Questionnaire'!N15,"X","") ->  | O8: Trans. supervisor | T8: A. | U8: =Inventory!I8 -> 0 | V8: =Inventory!L8 -> 0 | W8: =Inventory!N8 -> 0 | X8: =Inventory!P8 -> 0 | Y8: =Inventory!S8 -> 0 | Z8: =Inventory!V8 -> 0 | AA8: =Inventory!X8 -> 0 | AB8: =Inventory!AA8 -> 0 | AC8: =Inventory!AC8 -> 0 | AD8: =Inventory!AF8 -> 0 | AE8: =Inventory!AI8 -> 0
D9: B. | E9: 1 | G9: ='Bus Data'!I10 -> 0 | N9: =IF('Policy Questionnaire'!N17,"X","") ->  | O9: =IF('Policy Questionnaire'!F17<>"",'Policy Questionnaire'!F17,"Other Ln A") -> Other Ln A | T9: B. | U9: =Inventory!I9 -> 0 | V9: =Inventory!L9 -> 0 | W9: =Inventory!N9 -> 0 | X9: =Inventory!P9 -> 0 | Y9: =Inventory!S9 -> 0 | Z9: =Inventory!V9 -> 0 | AA9: =Inventory!X9 -> 0 | AB9: =Inventory!AA9 -> 0 | AC9: =Inventory!AC9 -> 0 | AD9: =Inventory!AF9 -> 0 | AE9: =Inventory!AI9 -> 0
E10: 2 | G10: ='Bus Data'!I11 -> 0 | L10: B. | M10: a. | N10: =IF('Policy Questionnaire'!N21,"Yes","No") -> No | O10: Yes/No | T10: C. | U10: =Inventory!I10 -> 0 | V10: =Inventory!L10 -> 0 | W10: =Inventory!N10 -> 0 | X10: =Inventory!P10 -> 0 | Y10: =Inventory!S10 -> 0 | Z10: =Inventory!V10 -> 0 | AA10: =Inventory!X10 -> 0 | AB10: =Inventory!AA10 -> 0 | AC10: =Inventory!AC10 -> 0 | AD10: =Inventory!AF10 -> 0 | AE10: =Inventory!AI10 -> 0
D11: C. | E11: 1 | G11: ='Bus Data'!I14 -> 0 | M11: b. | N11: =IF('Policy Questionnaire'!N25,"Yes","No") -> No | O11: Yes/No | T11: D. | U11: =Inventory!I11 -> 0 | V11: =Inventory!L11 -> 0 | W11: =Inventory!N11 -> 0 | X11: =Inventory!P11 -> 0 | Y11: =Inventory!S11 -> 0 | Z11: =Inventory!V11 -> 0 | AA11: =Inventory!X11 -> 0 | AB11: =Inventory!AA11 -> 0 | AC11: =Inventory!AC11 -> 0 | AD11: =Inventory!AF11 -> 0 | AE11: =Inventory!AI11 -> 0
E12: 2 | G12: ='Bus Data'!I15 -> 0 | L12: C. | N12: =IF('Policy Questionnaire'!N33,"X","") ->  | O12: Supt./Asst. Supt. | T12: E. | U12: =Inventory!I12 -> 0 | V12: =Inventory!L12 -> 0 | W12: =Inventory!N12 -> 0 | X12: =Inventory!P12 -> 0 | Y12: =Inventory!S12 -> 0 | Z12: =Inventory!V12 -> 0 | AA12: =Inventory!X12 -> 0 | AB12: =Inventory!AA12 -> 0 | AC12: =Inventory!AC12 -> 0 | AD12: =Inventory!AF12 -> 0 | AE12: =Inventory!AI12 -> 0
E13: 3 | G13: =SUM('Bus Data'!$I$16) -> 0 | N13: =IF('Policy Questionnaire'!N35,"X","") ->  | O13: Transportation director | T13: F. | U13: =Inventory!I13 -> 0 | V13: =Inventory!L13 -> 0 | W13: =Inventory!N13 -> 0 | X13: =Inventory!P13 -> 0 | Y13: =Inventory!S13 -> 0 | Z13: =Inventory!V13 -> 0 | AA13: =Inventory!X13 -> 0 | AB13: =Inventory!AA13 -> 0 | AC13: =Inventory!AC13 -> 0 | AD13: =Inventory!AF13 -> 0 | AE13: =Inventory!AI13 -> 0
D14: D. | G14: ='Bus Data'!I18 -> 0 | N14: =IF('Policy Questionnaire'!N37,"X","") ->  | O14: Principals | T14: G. | U14: =Inventory!I14 -> 0 | V14: =Inventory!L14 -> 0 | W14: =Inventory!N14 -> 0 | X14: =Inventory!P14 -> 0 | Y14: =Inventory!S14 -> 0 | Z14: =Inventory!V14 -> 0 | AA14: =Inventory!X14 -> 0 | AB14: =Inventory!AA14 -> 0 | AC14: =Inventory!AC14 -> 0 | AD14: =Inventory!AF14 -> 0 | AE14: =Inventory!AI14 -> 0
D15: E. | F15: Sub-Total | G15: ='Bus Data'!K23 -> 0 | N15: =IF('Policy Questionnaire'!N39,"X","") ->  | O15: TIMS Coordinator | T15: H. | U15: =Inventory!I15 -> 0 | V15: =Inventory!L15 -> 0 | W15: =Inventory!N15 -> 0 | X15: =Inventory!P15 -> 0 | Y15: =Inventory!S15 -> 0 | Z15: =Inventory!V15 -> 0 | AA15: =Inventory!X15 -> 0 | AB15: =Inventory!AA15 -> 0 | AC15: =Inventory!AC15 -> 0 | AD15: =Inventory!AF15 -> 0 | AE15: =Inventory!AI15 -> 0
E16: 1 | G16: ='Bus Data'!I21 -> 0 | N16: =IF('Policy Questionnaire'!N41,"X","") ->  | O16: Trans. supervisor
E17: 2 | G17: ='Bus Data'!I22 -> 0 | N17: =IF('Policy Questionnaire'!N43,"X","") ->  | O17: =IF('Policy Questionnaire'!F43<>"",'Policy Questionnaire'!F43,"Other Ln C") -> Other Ln C | S17: Non-Stocl Inventory
E18: 3 | G18: ='Bus Data'!I23 -> 0 | L18: D. | N18: =IF('Policy Questionnaire'!N47,"Yes","No") -> No | O18: Yes/No | U18: Quantity | V18: Currency
D19: F. | G19: ='Bus Data'!I25 -> 0 | L19: E. | N19: =IF('Policy Questionnaire'!N53,"Yes","No") -> No | O19: Yes/No | T19: A. | U19: =Inventory!N27 -> 0 | V19: =Inventory!P27 -> 0
D20: G. | E20: 1 | G20: ='Bus Data'!I28 -> 0 | L20: F. | N20: =IF('Policy Questionnaire'!N61,"X","") ->  | O20: At-risk BEP
E21: 2 | G21: ='Bus Data'!I29 -> 0 | N21: =IF('Policy Questionnaire'!N63,"X","") ->  | O21: Pre-K Handicapped | S21: Engine Replacement
D22: H. | E22: 1 | G22: ='Bus Data'!I33 -> 0 | N22: =IF('Policy Questionnaire'!N65,"X","") ->  | O22: Head Start | U22: Quantity
E23: 2 | G23: ='Bus Data'!I34 -> 0 | N23: =IF('Policy Questionnaire'!N67,"X","") ->  | O23: At-risk Remediation | T23: A. | U23: =Inventory!N31 -> 0
E24: 3 | F24: Sub-Total | G24: ='Bus Data'!K41 -> 0 | N24: =IF('Policy Questionnaire'!N69,"X","") ->  | O24: Migrant Education | T24: B. | U24: =Inventory!N32 -> 0
F25: Primary | G25: ='Bus Data'!K37 -> Pri. System | N25: =IF('Policy Questionnaire'!N71,"X","") ->  | O25: DARE Program | T25: C. | U25: =Inventory!N33 -> 0
F26: Secondary | G26: ='Bus Data'!M37 -> Sec. System | N26: =IF('Policy Questionnaire'!N73,"X","") ->  | O26: Local Enrichment
F27: a. | G27: ='Bus Data'!I38 -> 0 | N27: =IF('Policy Questionnaire'!N75,"X","") ->  | O27: SOS Plus
F28: b. | G28: ='Bus Data'!I39 -> 0 | N28: =IF('Policy Questionnaire'!N77,"X","") ->  | O28: VIPERS Program
F29: c. | G29: ='Bus Data'!I40 -> 0 | N29: =IF('Policy Questionnaire'!N79,"X","") ->  | O29: =IF('Policy Questionnaire'!F79<>"",'Policy Questionnaire'!F79,"Other Ln F") -> Other Ln F
F30: d. | G30: ='Bus Data'!I41 -> 0 | L30: G. | N30: =IF('Policy Questionnaire'!N83,"X","") ->  | O30: None
E31: 4 | G31: ='Bus Data'!I43 -> 0 | N31: ='Policy Questionnaire'!N85 -> 0 | O31: Regular Students
F32: Primary | G32: ='Bus Data'!K44 -> Pri. System | N32: ='Policy Questionnaire'!N87 -> 0 | O32: Special Educ. Students
F33: Secondary | G33: ='Bus Data'!M44 -> Sec. System | L33: H. | N33: ='Policy Questionnaire'!I91 -> 00:00:00 | O33: AM
D34: I. | F34: Sub-Total | G34: ='Bus Data'!K49 -> 0 | N34: =IF('Policy Questionnaire'!N93,"X","") ->  | O34: None
F35: Primary | G35: ='Bus Data'!K47 -> Pri. System | L35: I. | N35: ='Policy Questionnaire'!N97 -> 00:00:00 | O35: PM
F36: Secondary | G36: ='Bus Data'!M47 -> Sec. System | N36: =IF('Policy Questionnaire'!N99,"X","") ->  | O36: None
E37: 1 | G37: ='Bus Data'!I48 -> 0 | L37: J. | N37: ='Policy Questionnaire'!N103 -> 0 | O37: Food service/Driver
E38: 2 | G38: ='Bus Data'!I49 -> 0 | N38: ='Policy Questionnaire'!N105 -> 0 | O38: Custodial/Driver
D39: J. | G39: ='Bus Data'!I51 -> 0 | N39: ='Policy Questionnaire'!I107 -> 0 | O39: Teacher Asst/Driver
C40: Surplus Property | D40: A. | G40: ='Bus Data'!I54 -> 0 | N40: ='Policy Questionnaire'!I110 -> 0 | O40: =IF('Policy Questionnaire'!F110<>"",'Policy Questionnaire'!F110,"Other Ln J") -> Other Ln J
D41: B. | G41: ='Bus Data'!I55 -> 0 | L41: K. | N41: =IF('Policy Questionnaire'!N116,"X","") ->  | O41: Food service/Driver
D42: C. | G42: ='Bus Data'!I56 -> 0 | N42: =IF('Policy Questionnaire'!N118,"X","") ->  | O42: Custodial/Driver
C43: State Surplus Contracts | D43: A. | F43: Sub-Total | G43: ='Bus Data'!K61 -> 0 | N43: =IF('Policy Questionnaire'!N120,"X","") ->  | O43: Teacher Asst/Driver
E44: 1 | G44: ='Bus Data'!I60 -> 0 | N44: =IF('Policy Questionnaire'!N122,"X","") ->  | O44: =IF('Policy Questionnaire'!F122<>"",'Policy Questionnaire'!F122,"Other Ln K") -> Other Ln K
E45: 2 | G45: ='Bus Data'!I61 -> 0 | L45: L. | N45: =IF('Policy Questionnaire'!$N$129,"X","") ->  | O45: Adopted Policy History Check
D46: B. | G46: ='Bus Data'!I62 -> 0 | N46: =IF('Policy Questionnaire'!$N$131,"X","") ->  | O46: Required for Pre-Employment
D47: C. | G47: ='Bus Data'!I63 -> 0 | L47: M. | N47: =IF('Policy Questionnaire'!$N$135,"Annual ","")&IF('Policy Questionnaire'!$N$137,"Semi-Annual ","")&IF('Policy Questionnaire'!$N$139,"Never ","")&IF('Policy Questionnaire'!$N$141,"Other M","") ->  | O47: Background check
D48: D. | G48: ='Bus Data'!I64 -> 0 | L48: N. | N48: =IF('Policy Questionnaire'!$N$147,"X","") ->  | O48: Criminal Background Search
D49: E. | G49: ='Bus Data'!I65 -> 0 | N49: =IF('Policy Questionnaire'!$N$149,"X","") ->  | O49: FBI Background Check
C50: Bus Drivers - | D50: A. | G50: ='Local Expenditures'!$N$9 -> 0 | N50: =IF('Policy Questionnaire'!$N$151,"X","") ->  | O50: State Background Check
C51: Local Expenditures | D51: B. | G51: ='Local Expenditures'!$N$11 -> 0 | N51: =IF('Policy Questionnaire'!$N$153,"X","") ->  | O51: Local Background Check
D52: C. | E52: 2 | G52: =IF('Local Expenditures'!L14="yes",'Local Expenditures'!$N$17,0) -> 0 | N52: =IF('Policy Questionnaire'!$N$155,"X","") ->  | O52: National Background Check
F53: Sub-Total | G53: ='Local Expenditures'!$P$19 -> 0 | N53: =IF('Policy Questionnaire'!$N$157,"X","") ->  | O53: Police Record Search
D54: D. | E54: 1 | F54: a. | G54: ='Local Expenditures'!$J$23 -> 0 | N54: =IF('Policy Questionnaire'!$N$159,"X","") ->  | O54: Sex Offender Search
F55: b. | G55: ='Local Expenditures'!$L$23 -> 0 | N55: =IF('Policy Questionnaire'!$N$161,"X","") ->  | O55: Driving Record Search
F56: c. | G56: ='Local Expenditures'!$N$23 -> 0 | N56: =IF('Policy Questionnaire'!$N$163,"X","") ->  | O56: Prison Inmate Search
E57: 2 | F57: a. | G57: ='Local Expenditures'!$J$24 -> 0 | N57: =IF('Policy Questionnaire'!$N$165,"X","") ->  | O57: Vehicle History Search
F58: b. | G58: ='Local Expenditures'!$L$24 -> 0 | N58: =IF('Policy Questionnaire'!$N$167,"X","") ->  | O58: =IF('Policy Questionnaire'!$F$167<>"",'Policy Questionnaire'!$F$167,"Other Ln N") -> Other Ln N
F59: c. | G59: ='Local Expenditures'!$N$24 -> 0 | L59: O. | N59: =IF('Policy Questionnaire'!$N$171,"Annual ","")&IF('Policy Questionnaire'!$N$173,"Semi-Annual ","")&IF('Policy Questionnaire'!$N$175,"Never ","")&IF('Policy Questionnaire'!$F$177<>"",'Policy Questionnaire'!$F$177,"Other Ln O") -> Other Ln O | O59: Inventory
E60: 3 | F60: a. | G60: ='Local Expenditures'!$J$25 -> 0 | L60: P. | N60: ='Policy Questionnaire'!$N$179 -> 0 | O60: # of persons assigned
F61: b. | G61: ='Local Expenditures'!$L$25 -> 0 | L61: Q. | M61: a. | N61: ='Policy Questionnaire'!$N$184 -> 0 | O61: TIMS 75%-100% of their time
F62: c. | G62: ='Local Expenditures'!$N$25 -> 0 | M62: b. | N62: ='Policy Questionnaire'!$N$186 -> 0 | O62: TIMS 50%-74% of their time?
F63: Sub-Total | G63: ='Local Expenditures'!$J$26 ->  | M63: c. | N63: ='Policy Questionnaire'!$N$188 -> 0 | O63: TIMS 25%-49% of their time?
F64: Sub-Total | G64: ='Local Expenditures'!$L$26 ->  | M64: d. | N64: ='Policy Questionnaire'!$N$190 -> 0 | O64: TIMS 1%-24% of their time?
F65: Sub-Total | G65: ='Local Expenditures'!$N$26 ->  | M65: e. | N65: =IF('Policy Questionnaire'!$N$192,"Yes","") ->  | O65: Editing Powerschool?
C66: Transporation Personnel | D66: A. | E66: 1 | G66: ='Local Expenditures'!$N$30 -> 0 | M66: f. | N66: =IF('Policy Questionnaire'!$N$196,"Yes","") ->  | O66: Read only Powerschool?
E67: 2 | G67: ='Local Expenditures'!$N$31 -> 0 | M67: g. | N67: =IF('Policy Questionnaire'!$N$200,"Daily ","")&IF('Policy Questionnaire'!$N$202,"Weekly ","")&IF('Policy Questionnaire'!$N$204,"Monthly ","")&IF('Policy Questionnaire'!$N$206,"A few times per semester ","")&IF('Policy Questionnaire'!$N$208,"Twice a year ","")&IF('Policy Questionnaire'!$N$210,"Once a year ","") ->  | O67: Upload schedule TIMS
D68: B. | E68: 1 | G68: ='Local Expenditures'!$N$33 -> 0 | L68: R. | M68: a. | N68: ='Policy Questionnaire'!I216 -> 0 | O68: Students Transported
E69: 2 | G69: ='Local Expenditures'!$N$34 -> 0 | M69: b. | N69: ='Policy Questionnaire'!I218 -> 0 | O69: Buses Dedicated
D70: C. | E70: 1 | F70: Salary | G70: ='Local Expenditures'!$L$39 -> 0 | M70: c. | N70: ='Policy Questionnaire'!I220 -> 0 | O70: Service Charter Buses
F71: Benefits | G71: ='Local Expenditures'!$N$39 -> 0 | L71: S. | M71: a. | N71: ='Policy Questionnaire'!I226 -> 0 | O71: Mech I positions
E72: 2 | F72: Salary | G72: ='Local Expenditures'!$L$47 ->  | M72: b. | N72: ='Policy Questionnaire'!I228 -> 0 | O72: Mech II positions
F73: Benefits | G73: ='Local Expenditures'!$N$47 ->  | M73: c. | N73: ='Policy Questionnaire'!I230 -> 0 | O73: Mech III positions
C74: Other Local Expenditures | D74: A. | G74: ='Local Expenditures'!$N$55 -> 0 | M74: d. | N74: ='Policy Questionnaire'!I232 -> 0 | O74: Mech I annual avg salary
D75: B. | G75: ='Local Expenditures'!$N$56 -> 0 | M75: e. | N75: ='Policy Questionnaire'!I234 -> 0 | O75: Mech II annual avg salary
D76: C. | G76: ='Local Expenditures'!$N$65 ->  | M76: f. | N76: ='Policy Questionnaire'!I236 -> 0 | O76: Mech III annual avg salary
C77: DPI Offical Use | D77: A. | G77: ='Local Expenditures'!$N$69 -> 0
D78: B. | G78: ='Local Expenditures'!$N$73 -> 0

Sheet Policy Summary
E4: A. | K4: B. | M4: C. | S4: D. | T4: E. | U4: F. | AE4: G. | AH4: H. | AJ4: I. | AL4: J. | AP4: K. | AT4: L. | AV4: M. | AW4: N. | BH4: O. | BI4: P. | BJ4: Q. | BQ4: R. | BT4: S.
K5: a. | L5: b. | BJ5: a. | BK5: b. | BL5: c. | BM5: d. | BN5: e. | BO5: f. | BP5: g. | BQ5: a. | BR5: b. | BS5: c. | BT5: a. | BU5: b. | BV5: c. | BW5: d. | BX5: e. | BY5: f.
B6: LEA | C6: Code | E6: Supt./Asst. Supt. | F6: Transportation director | G6: Principals | H6: TIMS Coordinator | I6: Trans. supervisor | J6: ='Official Summary'!O9 -> Other Ln A | K6: Yes/No | L6: Yes/No | M6: Supt./Asst. Supt. | N6: Transportation director | O6: Principals | P6: TIMS Coordinator | Q6: Trans. supervisor | R6: ='Official Summary'!O17 -> Other Ln C | S6: Yes/No | T6: Yes/No | U6: At-risk BEP | V6: Pre-K Handicapped | W6: Head Start | X6: At-risk Remediation | Y6: Migrant Education | Z6: DARE Program | AA6: Local Enrichment | AB6: SOS Plus | AC6: VIPERS Program | AD6: ='Official Summary'!O29 -> Other Ln F | AE6: None | AF6: Regular Students | AG6: Special Educ. Students | AH6: AM | AI6: None | AJ6: PM | AK6: None | AL6: Food service/Driver | AM6: Custodial/Driver | AN6: Teacher Asst/Driver | AO6: ='Official Summary'!O40 -> Other Ln J | AP6: Food service/Driver | AQ6: Custodial/Driver | AR6: Teacher Asst/Driver | AS6: ='Official Summary'!O44 -> Other Ln K | AT6: Adopted Policy History Check | AU6: Required for Pre-Employment | AV6: Background check | AW6: Criminal Background Search | AX6: FBI Background Check | AY6: State Background Check | AZ6: Local Background Check | BA6: National Background Check | BB6: Police Record Search | BC6: Sex Offender Search | BD6: Driving Record Search | BE6: Prison Inmate Search | BF6: Vehicle History Search | BG6: =IF('Policy Questionnaire'!$F$167<>"",'Policy Questionnaire'!$F$167,"Other Ln N") -> Other Ln N | BH6: Inventory | BI6: # of persons assigned | BJ6: TIMS 75%-100% of their time | BK6: TIMS 50%-74% of their time? | BL6: TIMS 25%-49% of their time? | BM6: TIMS 1%-24% of their time? | BN6: Editing Powerschool? | BO6: Read only Powerschool? | BP6: Upload schedule TIMS | BQ6: Students Transported | BR6: Buses Dedicated | BS6: Service Charter Buses | BT6: Mech I positions | BU6: Mech II positions | BV6: Mech III positions | BW6: Mech I annual avg salary | BX6: Mech II annual avg salary | BY6: Mech III annual avg salary
B7: ='Bus Data'!G4 -> ALAMANCE | C7: ='Official Summary'!G6 -> 010 | E7: ='Official Summary'!N4 ->  | F7: ='Official Summary'!N5 ->  | G7: ='Official Summary'!N6 ->  | H7: ='Official Summary'!N7 ->  | I7: ='Official Summary'!N8 ->  | J7: ='Official Summary'!N9 ->  | K7: ='Official Summary'!N10 -> No | L7: ='Official Summary'!N11 -> No | M7: ='Official Summary'!N12 ->  | N7: ='Official Summary'!N13 ->  | O7: ='Official Summary'!N14 ->  | P7: ='Official Summary'!N15 ->  | Q7: ='Official Summary'!N16 ->  | R7: ='Official Summary'!N17 ->  | S7: ='Official Summary'!N18 -> No | T7: ='Official Summary'!N19 -> No | U7: ='Official Summary'!N20 ->  | V7: ='Official Summary'!N21 ->  | W7: ='Official Summary'!N22 ->  | X7: ='Official Summary'!N23 ->  | Y7: ='Official Summary'!N24 ->  | Z7: ='Official Summary'!N25 ->  | AA7: ='Official Summary'!N26 ->  | AB7: ='Official Summary'!N27 ->  | AC7: ='Official Summary'!N28 ->  | AD7: ='Official Summary'!N29 ->  | AE7: ='Official Summary'!N30 ->  | AF7: ='Official Summary'!N31 -> 0 | AG7: ='Official Summary'!N32 -> 0 | AH7: ='Official Summary'!N33 -> 0 | AI7: ='Official Summary'!N34 ->  | AJ7: ='Official Summary'!N35 -> 00:00:00 | AK7: ='Official Summary'!N36 ->  | AL7: ='Official Summary'!N37 -> 0 | AM7: ='Official Summary'!N38 -> 0 | AN7: ='Official Summary'!N39 -> 0 | AO7: ='Official Summary'!N40 -> 0 | AP7: ='Official Summary'!N41 ->  | AQ7: ='Official Summary'!N42 ->  | AR7: ='Official Summary'!N43 ->  | AS7: ='Official Summary'!N44 ->  | AT7: ='Official Summary'!N45 ->  | AU7: ='Official Summary'!N46 ->  | AV7: ='Official Summary'!N47 ->  | AW7: ='Official Summary'!N48 ->  | AX7: ='Official Summary'!N49 ->  | AY7: ='Official Summary'!N50 ->  | AZ7: ='Official Summary'!N51 ->  | BA7: ='Official Summary'!N52 ->  | BB7: ='Official Summary'!N53 ->  | BC7: ='Official Summary'!N54 ->  | BD7: ='Official Summary'!N55 ->  | BE7: ='Official Summary'!N56 ->  | BF7: ='Official Summary'!N57 ->  | BG7: ='Official Summary'!N58 ->  | BH7: ='Official Summary'!N59 -> Other Ln O | BI7: ='Official Summary'!N60 -> 0 | BJ7: ='Official Summary'!N61 -> 0 | BK7: ='Official Summary'!N62 -> 0 | BL7: ='Official Summary'!N63 -> 0 | BM7: ='Official Summary'!N64 -> 0 | BN7: ='Official Summary'!N65 ->  | BO7: ='Official Summary'!N66 ->  | BP7: ='Official Summary'!N67 ->  | BQ7: ='Official Summary'!N68 -> 0 | BR7: ='Official Summary'!N69 -> 0 | BS7: ='Official Summary'!N70 -> 0 | BT7: ='Official Summary'!N71 -> 0 | BU7: ='Official Summary'!N72 -> 0 | BV7: ='Official Summary'!N73 -> 0 | BW7: ='Official Summary'!N74 -> 0 | BX7: ='Official Summary'!N75 -> 0 | BY7: ='Official Summary'!N76 -> 0
